fUST/lending_fUST_20250912
["ID","MTS","AMOUNT","RATE_DAILY","PERIOD"]
[385130718,1757668261789,-151.0,0.00015342,2]
[385130719,1757668261799,-194.16379098,0.00015342,2]
[385130720,1757668261808,-151.0,0.00015342,2]
[385130721,1757668261817,-480.0,0.00015342,2]
[385130722,1757668261826,-199.199335,0.00015342,2]
[385130723,1757668261836,-480.0,0.00015342,2]
[385130724,1757668261845,-480.0,0.00015342,2]
[385130725,1757668261854,-480.0,0.00015342,2]
[385130726,1757668261863,-480.0,0.00015342,2]
[385130727,1757668261873,-480.0,0.00015342,2]
[385130728,1757668261882,-480.0,0.00015342,2]
[385130729,1757668261891,-480.0,0.00015342,2]
[385130730,1757668261900,-480.0,0.00015342,2]
[385130731,1757668261910,-480.0,0.00015342,2]
[385130732,1757668261919,-480.0,0.00015342,2]
[385130733,1757668261928,-480.0,0.00015342,2]
[385130734,1757668261938,-480.0,0.00015342,2]
[385130735,1757668261947,-480.0,0.00015342,2]
[385130736,1757668261956,-480.0,0.00015342,2]
[385130737,1757668261965,-480.0,0.00015342,2]
[385130738,1757668261974,-458.32111011,0.00015342,2]
[385130739,1757668261983,-480.0,0.00015342,2]
[385130740,1757668261992,-480.0,0.00015342,2]
[385130741,1757668262003,-480.0,0.00015342,2]
[385130742,1757668262012,-480.0,0.00015342,2]
[385130743,1757668262021,-480.0,0.00015342,2]
[385130744,1757668262030,-3183.96,0.00015342,2]
[385130745,1757668262040,-480.0,0.00015342,2]
[385130746,1757668262050,-480.0,0.00015342,2]
[385130747,1757668262060,-480.0,0.00015342,2]
[385130748,1757668262069,-480.0,0.00015342,2]
[385130749,1757668262079,-480.0,0.00015342,2]
[385130750,1757668262088,-480.0,0.00015342,2]
[385130751,1757668262097,-480.0,0.00015342,2]
[385130752,1757668262106,-1985.35,0.00015342,2]
[385130753,1757668262116,-480.0,0.00015342,2]
[385130754,1757668262125,-480.0,0.00015342,2]
[385130755,1757668262134,-480.0,0.00015342,2]
[385130756,1757668262143,-480.0,0.00015342,2]
[385130757,1757668262153,-480.0,0.00015342,2]
[385130758,1757668262162,-480.0,0.00015342,2]
[385130759,1757668262171,-480.0,0.00015342,2]
[385130760,1757668262181,-485.63984628,0.00015342,2]
[385130761,1757668262190,-480.0,0.00015342,2]
[385130762,1757668262199,-480.0,0.00015342,2]
[385130763,1757668262208,-480.0,0.00015342,2]
[385130764,1757668262218,-480.0,0.00015342,2]
[385130765,1757668262227,-646.06,0.00015342,2]
[385130766,1757668262236,-480.0,0.00015342,2]
[385130767,1757668262245,-480.0,0.00015342,2]
[385130768,1757668262255,-480.0,0.00015342,2]
[385130769,1757668262264,-480.0,0.00015342,2]
[385130770,1757668262273,-520.5,0.00015342,2]
[385130771,1757668262282,-480.0,0.00015342,2]
[385130772,1757668262292,-480.0,0.00015342,2]
[385130773,1757668262301,-480.0,0.00015342,2]
[385130774,1757668262310,-480.0,0.00015342,2]
[385130775,1757668262319,-926.0,0.00015342,2]
[385130776,1757668262329,-480.0,0.00015342,2]
[385130777,1757668262338,-487.60544143,0.00015342,2]
[385130778,1757668262347,-600.97,0.00015342,2]
[385130779,1757668262356,-225.41494017,0.00015342,2]
[385130780,1757668262366,-480.0,0.00015342,2]
[385130781,1757668262375,-327.6887114,0.00015342,2]
[385130782,1757668262384,-480.0,0.00015342,2]
[385130783,1757668262394,-480.0,0.00015342,2]
[385130784,1757668262403,-480.0,0.00015342,2]
[385130785,1757668262414,-480.0,0.00015342,2]
[385130786,1757668262424,-480.0,0.00015342,2]
[385130787,1757668262434,-480.0,0.00015342,2]
[385130788,1757668262445,-480.0,0.00015342,2]
[385130789,1757668262454,-480.0,0.00015342,2]
[385130790,1757668262463,-480.0,0.00015342,2]
[385130791,1757668262473,-480.0,0.00015342,2]
[385130792,1757668262482,-480.0,0.00015342,2]
[385130793,1757668262491,-480.0,0.00015342,2]
[385130794,1757668262500,-480.0,0.00015342,2]
[385130795,1757668262509,-480.0,0.00015342,2]
[385130796,1757668262519,-480.0,0.00015342,2]
[385130797,1757668262529,-480.0,0.00015342,2]
[385130798,1757668262538,-480.0,0.00015342,2]
[385130799,1757668262548,-480.0,0.00015342,2]
[385130800,1757668262557,-3827.25,0.00015342,2]
[385130801,1757668262567,-480.0,0.00015342,2]
[385130802,1757668262576,-480.0,0.00015342,2]
[385130803,1757668262587,-480.0,0.00015342,2]
[385130804,1757668262596,-480.0,0.00015342,2]
[385130805,1757668262605,-480.0,0.00015342,2]
[385130806,1757668262614,-480.0,0.00015342,2]
[385130807,1757668262623,-480.0,0.00015342,2]
[385130808,1757668262633,-480.0,0.00015342,2]
[385130809,1757668262642,-480.0,0.00015342,2]
[385130810,1757668262651,-480.0,0.00015342,2]
[385130811,1757668262660,-480.0,0.00015342,2]
[385130812,1757668262669,-480.0,0.00015342,2]
[385130813,1757668262679,-490.14,0.00015342,2]
[385130814,1757668262688,-151.0,0.00015342,2]
[385130815,1757668262697,-480.0,0.00015342,2]
[385130816,1757668262706,-151.0,0.00015342,2]
[385130817,1757668262715,-480.0,0.00015342,2]
[385130818,1757668262725,-480.0,0.00015342,2]
[385130819,1757668262734,-151.0,0.00015342,2]
[385130820,1757668262743,-480.0,0.00015342,2]
[385130821,1757668262754,-480.0,0.00015342,2]
[385130822,1757668262763,-480.0,0.00015342,2]
[385130823,1757668262772,-1723.81516929,0.00015403,2]
[385130824,1757668262782,-28375.50605511,0.00015516,2]
[385130825,1757668262791,-151.0,0.00015516,2]
[385130826,1757668262801,-151.0,0.00015516,2]
[385130827,1757668262810,-599.145504,0.00015516,2]
[385130828,1757668262819,-599.145504,0.00015516,2]
[385130829,1757668262829,-599.145504,0.00015516,2]
[385130830,1757668262839,-151.0,0.00015516,2]
[385130831,1757668262849,-599.145504,0.00015516,2]
[385130832,1757668262859,-151.0,0.00015516,2]
[385130833,1757668262868,-151.0,0.00015516,2]
[385130834,1757668262878,-151.0,0.00015516,2]
[385130835,1757668262887,-256.269779,0.00015516,2]
[385130836,1757668262896,-151.0,0.00015516,2]
[385130837,1757668262905,-151.0,0.00015516,2]
[385130838,1757668262914,-213.451996,0.00015516,2]
[385130839,1757668262924,-151.0,0.00015516,2]
[385130840,1757668262933,-229.030061,0.00015516,2]
[385130841,1757668262943,-229.030061,0.00015516,2]
[385130842,1757668262952,-229.030061,0.00015516,2]
[385130843,1757668262961,-1247.005434,0.00015516,2]
[385130844,1757668262970,-229.030061,0.00015516,2]
[385130845,1757668262979,-1247.005434,0.00015516,2]
[385130846,1757668262988,-1247.005434,0.00015516,2]
[385130847,1757668262998,-1247.005434,0.00015516,2]
[385130848,1757668263007,-418.889356,0.00015516,2]
[385130849,1757668263016,-418.889356,0.00015516,2]
[385130851,1757668263025,-151.0,0.00015516,2]
[385130852,1757668263034,-418.889356,0.00015516,2]
[385130853,1757668263042,-418.889356,0.00015516,2]
[385130854,1757668263051,-426.20984033,0.00015552,2]
[385130855,1757668263060,-151.0,0.000156,2]
[385130856,1757668263070,-500.0,0.00015616,2]
[385130857,1757668263079,-480.0,0.00015616,2]
[385130858,1757668263088,-480.0,0.00015616,2]
[385130859,1757668263098,-480.0,0.00015616,2]
[385130860,1757668263107,-480.0,0.00015616,2]
[385130861,1757668263116,-151.0,0.00015616,2]
[385130862,1757668263124,-480.0,0.00015616,2]
[385130863,1757668263134,-151.0,0.00015616,2]
[385130864,1757668263142,-480.0,0.00015616,2]
[385130865,1757668263150,-480.0,0.00015616,2]
[385130866,1757668263256,-480.0,0.00015616,2]
[385130867,1757668263265,-480.0,0.00015616,2]
[385130868,1757668263274,-230.76101126,0.00015616,2]
[385130869,1757668263284,-480.0,0.00015616,2]
[385130870,1757668263291,-480.0,0.00015616,2]
[385130871,1757668263299,-480.0,0.00015616,2]
[385130872,1757668263308,-480.0,0.00015616,2]
[385130873,1757668263318,-480.0,0.00015616,2]
[385130874,1757668263327,-480.0,0.00015616,2]
[385130875,1757668263337,-480.0,0.00015616,2]
[385130876,1757668263346,-480.0,0.00015616,2]
[385130877,1757668263355,-480.0,0.00015616,2]
[385130878,1757668263365,-480.0,0.00015616,2]
[385130879,1757668263374,-480.0,0.00015616,2]
[385130880,1757668263384,-170.838962,0.00015616,2]
[385130881,1757668263393,-170.838962,0.00015616,2]
[385130882,1757668263403,-170.838962,0.00015616,2]
[385130883,1757668263412,-170.838962,0.00015616,2]
[385130884,1757668263422,-480.0,0.00015616,2]
[385130885,1757668263432,-151.0,0.00015616,2]
[385130886,1757668263441,-480.0,0.00015616,2]
[385130887,1757668263450,-151.0,0.00015616,2]
[385130888,1757668263460,-151.0,0.00015616,2]
[385130889,1757668263469,-480.0,0.00015616,2]
[385130890,1757668263479,-480.0,0.00015616,2]
[385130891,1757668263488,-151.0,0.00015616,2]
[385130892,1757668263498,-262.315923,0.00015616,2]
[385130893,1757668263507,-480.0,0.00015616,2]
[385130894,1757668263516,-262.315923,0.00015616,2]
[385130895,1757668263525,-262.315923,0.00015616,2]
[385130896,1757668263534,-480.0,0.00015616,2]
[385130897,1757668263543,-262.315923,0.00015616,2]
[385130898,1757668263553,-151.0,0.00015616,2]
[385130899,1757668263562,-480.0,0.00015616,2]
[385130900,1757668263571,-151.0,0.00015616,2]
[385130901,1757668263582,-151.0,0.00015616,2]
[385130902,1757668263592,-151.0,0.00015616,2]
[385130903,1757668263601,-151.0,0.00015616,2]
[385130904,1757668263610,-480.0,0.00015616,2]
[385130905,1757668263620,-151.0,0.00015616,2]
[385130906,1757668263629,-151.0,0.00015616,2]
[385130907,1757668263638,-480.0,0.00015616,2]
[385130908,1757668263647,-151.0,0.00015616,2]
[385130909,1757668263657,-166.09283,0.00015616,2]
[385130910,1757668263667,-3183.96,0.00015616,2]
[385130911,1757668263676,-166.09283,0.00015616,2]
[385130912,1757668263686,-166.09283,0.00015616,2]
[385130913,1757668263695,-166.09283,0.00015616,2]
[385130914,1757668263705,-480.0,0.00015616,2]
[385130915,1757668263714,-480.0,0.00015616,2]
[385130916,1757668263723,-480.0,0.00015616,2]
[385130917,1757668263732,-480.0,0.00015616,2]
[385130918,1757668263742,-480.0,0.00015616,2]
[385130919,1757668263751,-1985.35,0.00015616,2]
[385130920,1757668263760,-480.0,0.00015616,2]
[385130921,1757668263769,-480.0,0.00015616,2]
[385130922,1757668263778,-480.0,0.00015616,2]
[385130923,1757668263788,-480.0,0.00015616,2]
[385130924,1757668263797,-1000.0,0.00015616,2]
[385130925,1757668263806,-1000.0,0.00015616,2]
[385130926,1757668263816,-1000.0,0.00015616,2]
[385130927,1757668263825,-1000.0,0.00015616,2]
[385130928,1757668263839,-1000.0,0.00015616,2]
[385130929,1757668263848,-1000.0,0.00015616,2]
[385130930,1757668263858,-1000.0,0.00015616,2]
[385130931,1757668263868,-1000.0,0.00015616,2]
[385130932,1757668263877,-1000.0,0.00015616,2]
[385130933,1757668263887,-1000.0,0.00015616,2]
[385130934,1757668263897,-1000.0,0.00015616,2]
[385130935,1757668263906,-1000.0,0.00015616,2]
[385130936,1757668263916,-1000.0,0.00015616,2]
[385130937,1757668263925,-1000.0,0.00015616,2]
[385130938,1757668263935,-1000.0,0.00015616,2]
[385130939,1757668263944,-1000.0,0.00015616,2]
[385130940,1757668263954,-1000.0,0.00015616,2]
[385130941,1757668263964,-1000.0,0.00015616,2]
[385130942,1757668263974,-597.5525167,0.00015616,2]
[385130943,1757668263984,-1000.0,0.00015616,2]
[385130944,1757668263994,-1000.0,0.00015616,2]
[385130945,1757668264003,-1000.0,0.00015616,2]
[385130946,1757668264013,-1000.0,0.00015616,2]
[385130947,1757668264023,-1000.0,0.00015616,2]
[385130948,1757668264033,-1000.0,0.00015616,2]
[385130949,1757668264044,-1000.0,0.00015616,2]
[385130950,1757668264054,-480.0,0.00015616,2]
[385130951,1757668264064,-1000.0,0.00015616,2]
[385130952,1757668264074,-480.0,0.00015616,2]
[385130953,1757668264084,-480.0,0.00015616,2]
[385130954,1757668264095,-480.0,0.00015616,2]
[385130955,1757668264104,-480.0,0.00015616,2]
[385130956,1757668264114,-480.0,0.00015616,2]
[385130957,1757668264124,-646.06,0.00015616,2]
[385130958,1757668264136,-480.0,0.00015616,2]
[385130959,1757668264146,-582.02554439,0.00015616,2]
[385130960,1757668264156,-480.0,0.00015616,2]
[385130961,1757668264165,-480.0,0.00015616,2]
[385130962,1757668264174,-520.5,0.00015616,2]
[385130963,1757668264184,-480.0,0.00015616,2]
[385130964,1757668264193,-480.0,0.00015616,2]
[385130965,1757668264203,-480.0,0.00015616,2]
[385130966,1757668264212,-480.0,0.00015616,2]
[385130967,1757668264223,-926.0,0.00015616,2]
[385130968,1757668264232,-480.0,0.00015616,2]
[385130969,1757668264243,-600.97,0.00015616,2]
[385130970,1757668264252,-480.0,0.00015616,2]
[385130971,1757668264262,-480.0,0.00015616,2]
[385130972,1757668264272,-480.0,0.00015616,2]
[385130973,1757668264282,-480.0,0.00015616,2]
[385130974,1757668264292,-480.0,0.00015616,2]
[385130975,1757668264302,-480.0,0.00015616,2]
[385130976,1757668264312,-480.0,0.00015616,2]
[385130977,1757668264322,-480.0,0.00015616,2]
[385130978,1757668264333,-480.0,0.00015616,2]
[385130979,1757668264342,-480.0,0.00015616,2]
[385130980,1757668264352,-201.84086071,0.00015616,2]
[385130981,1757668264362,-480.0,0.00015616,2]
[385130982,1757668264372,-480.0,0.00015616,2]
[385130983,1757668264381,-480.0,0.00015616,2]
[385130984,1757668264391,-480.0,0.00015616,2]
[385130985,1757668264400,-574.45478107,0.00015616,2]
[385130986,1757668264410,-480.0,0.00015616,2]
[385130987,1757668264420,-480.0,0.00015616,2]
[385130988,1757668264430,-480.0,0.00015616,2]
[385130989,1757668264440,-3827.25,0.00015616,2]
[385130990,1757668264449,-480.0,0.00015616,2]
[385130991,1757668264459,-480.0,0.00015616,2]
[385130992,1757668264468,-480.0,0.00015616,2]
[385130993,1757668264478,-480.0,0.00015616,2]
[385130994,1757668264487,-480.0,0.00015616,2]
[385130995,1757668264497,-480.0,0.00015616,2]
[385130996,1757668264506,-480.0,0.00015616,2]
[385130997,1757668264516,-480.0,0.00015616,2]
[385130998,1757668264526,-480.0,0.00015616,2]
[385130999,1757668264535,-330.7824775,0.00015616,2]
[385131000,1757668264544,-480.0,0.00015616,2]
[385131001,1757668264553,-480.0,0.00015616,2]
[385131002,1757668264562,-490.14,0.00015616,2]
[385131003,1757668264571,-480.0,0.00015616,2]
[385131004,1757668264581,-480.0,0.00015616,2]
[385131005,1757668264591,-480.0,0.00015616,2]
[385131006,1757668264600,-480.0,0.00015616,2]
[385131008,1757668264610,-480.0,0.00015616,2]
[385131009,1757668264619,-217.66304665,0.00015725,2]
[385131010,1757668264876,-3657.04250012,0.00015725,2]
[385131011,1757668264886,-1704.83936133,0.0001578,2]
[385131012,1757668264895,-500.0,0.0001589,2]
[385131013,1757668264904,-319.23024668,0.0001589,2]
[385131014,1757668264914,-480.0,0.0001589,2]
[385131015,1757668264925,-480.0,0.0001589,2]
[385131016,1757668264935,-313.48471389,0.0001589,2]
[385131017,1757668264945,-480.0,0.0001589,2]
[385131018,1757668264955,-480.0,0.0001589,2]
[385131019,1757668264965,-480.0,0.0001589,2]
[385131020,1757668264974,-480.0,0.0001589,2]
[385131021,1757668264984,-480.0,0.0001589,2]
[385131022,1757668264993,-480.0,0.0001589,2]
[385131023,1757668265002,-480.0,0.0001589,2]
[385131024,1757668265011,-480.0,0.0001589,2]
[385131025,1757668265021,-480.0,0.0001589,2]
[385131026,1757668265030,-480.0,0.0001589,2]
[385131027,1757668265040,-480.0,0.0001589,2]
[385131028,1757668265049,-480.0,0.0001589,2]
[385131029,1757668265059,-480.0,0.0001589,2]
[385131030,1757668265068,-480.0,0.0001589,2]
[385131031,1757668265077,-480.0,0.0001589,2]
[385131032,1757668265087,-480.0,0.0001589,2]
[385131033,1757668265097,-480.0,0.0001589,2]
[385131034,1757668265106,-480.0,0.0001589,2]
[385131035,1757668265116,-480.0,0.0001589,2]
[385131036,1757668265125,-480.0,0.0001589,2]
[385131037,1757668265135,-3183.96,0.0001589,2]
[385131038,1757668265145,-480.0,0.0001589,2]
[385131039,1757668265154,-480.0,0.0001589,2]
[385131040,1757668265164,-480.0,0.0001589,2]
[385131041,1757668265173,-480.0,0.0001589,2]
[385131042,1757668265182,-480.0,0.0001589,2]
[385131043,1757668265192,-1985.35,0.0001589,2]
[385131044,1757668265201,-480.0,0.0001589,2]
[385131045,1757668265210,-616.41677107,0.0001589,2]
[385131046,1757668265219,-480.0,0.0001589,2]
[385131047,1757668265228,-480.0,0.0001589,2]
[385131048,1757668265238,-480.0,0.0001589,2]
[385131049,1757668265248,-480.0,0.0001589,2]
[385131050,1757668265258,-480.0,0.0001589,2]
[385131051,1757668265268,-480.0,0.0001589,2]
[385131052,1757668265278,-480.0,0.0001589,2]
[385131053,1757668265287,-480.0,0.0001589,2]
[385131054,1757668265297,-646.06,0.0001589,2]
[385131055,1757668265306,-480.0,0.0001589,2]
[385131056,1757668265315,-480.0,0.0001589,2]
[385131057,1757668265325,-480.0,0.0001589,2]
[385131058,1757668265334,-520.5,0.0001589,2]
[385131059,1757668265343,-480.0,0.0001589,2]
[385131060,1757668265353,-480.0,0.0001589,2]
[385131061,1757668265362,-480.0,0.0001589,2]
[385131062,1757668265372,-480.0,0.0001589,2]
[385131063,1757668265381,-174.96489137,0.0001589,2]
[385131064,1757668266218,-0.01924777,0.00013698,2]
[385131065,1757668266578,-479.98075223,0.00013698,2]
[385131066,1757668266589,-537.13638644,0.00013698,2]
[385131067,1757668266599,-480.0,0.00013698,2]
[385131068,1757668266610,-153.912404,0.0001399,2]
[385131069,1757668266620,-485.69,0.00014246,2]
[385131070,1757668266629,-480.0,0.0001452,2]
[385131071,1757668266639,-480.0,0.0001452,2]
[385131072,1757668266648,-485.69,0.0001452,2]
[385131073,1757668266658,-480.0,0.00014794,2]
[385131074,1757668266667,-493.81882238,0.00014794,2]
[385131075,1757668266678,-485.69,0.00014794,2]
[385131076,1757668266688,-480.0,0.00015068,2]
[385131077,1757668266698,-485.69,0.00015068,2]
[385131078,1757668266708,-480.0,0.00015342,2]
[385131079,1757668266717,-485.69,0.00015342,2]
[385131080,1757668266728,-480.0,0.00015616,2]
[385131081,1757668266737,-485.69,0.00015616,2]
[385131082,1757668266749,-751.03510863,0.0001589,2]
[385131083,1757668266759,-480.0,0.0001589,2]
[385131084,1757668266770,-600.97,0.0001589,2]
[385131085,1757668266779,-480.0,0.0001589,2]
[385131086,1757668266791,-480.0,0.0001589,2]
[385131087,1757668266802,-480.0,0.0001589,2]
[385131088,1757668266812,-480.0,0.0001589,2]
[385131089,1757668266823,-480.0,0.0001589,2]
[385131090,1757668266834,-480.0,0.0001589,2]
[385131091,1757668266844,-480.0,0.0001589,2]
[385131092,1757668266853,-480.0,0.0001589,2]
[385131093,1757668266862,-480.0,0.0001589,2]
[385131094,1757668266871,-480.0,0.0001589,2]
[385131095,1757668266880,-480.0,0.0001589,2]
[385131096,1757668266891,-480.0,0.0001589,2]
[385131097,1757668266900,-209.49173325,0.0001589,2]
[385131098,1757668266910,-480.0,0.0001589,2]
[385131099,1757668266920,-480.0,0.0001589,2]
[385131100,1757668266930,-3827.25,0.0001589,2]
[385131101,1757668266939,-480.0,0.0001589,2]
[385131102,1757668266948,-480.0,0.0001589,2]
[385131103,1757668266958,-480.0,0.0001589,2]
[385131104,1757668266967,-480.0,0.0001589,2]
[385131105,1757668266977,-480.0,0.0001589,2]
[385131106,1757668266986,-480.0,0.0001589,2]
[385131107,1757668266995,-480.0,0.0001589,2]
[385131108,1757668267004,-480.0,0.0001589,2]
[385131109,1757668267015,-480.0,0.0001589,2]
[385131110,1757668267024,-497.01020828,0.0001589,2]
[385131111,1757668267033,-480.0,0.0001589,2]
[385131112,1757668267042,-490.14,0.0001589,2]
[385131113,1757668267052,-488.5618906,0.0001589,2]
[385131114,1757668267061,-480.0,0.0001589,2]
[385131115,1757668267070,-480.0,0.0001589,2]
[385131116,1757668267079,-480.0,0.0001589,2]
[385131117,1757668267089,-480.0,0.0001589,2]
[385131118,1757668267098,-485.69,0.0001589,2]
[385131119,1757668267108,-864.0,0.00015936,2]
[385131120,1757668267119,-180.0,0.00015949,2]
[385131121,1757668267130,-3835.88856299,0.00016008,2]
[385131122,1757668267139,-5548.49441241,0.00016064,2]
[385131123,1757668267150,-500.0,0.00016164,2]
[385131124,1757668267159,-480.0,0.00016164,2]
[385131125,1757668267168,-480.0,0.00016164,2]
[385131126,1757668267177,-480.0,0.00016164,2]
[385131127,1757668267186,-480.0,0.00016164,2]
[385131128,1757668267196,-480.0,0.00016164,2]
[385131129,1757668267205,-213.50739287,0.00016164,2]
[385131130,1757668267215,-480.0,0.00016164,2]
[385131131,1757668267224,-480.0,0.00016164,2]
[385131132,1757668267234,-480.0,0.00016164,2]
[385131133,1757668267244,-515.11120518,0.00016164,2]
[385131134,1757668267253,-480.0,0.00016164,2]
[385131135,1757668267262,-151.0,0.00016164,2]
[385131136,1757668267272,-151.0,0.00016164,2]
[385131137,1757668267281,-485.3980371,0.00016164,2]
[385131138,1757668267290,-66.27814733,0.00016164,2]
[385131139,1757668267307,-160.41145367,0.00016164,2]
[385131140,1757668267316,-480.0,0.00016164,2]
[385131141,1757668267325,-480.0,0.00016164,2]
[385131142,1757668267335,-480.0,0.00016164,2]
[385131143,1757668267344,-480.0,0.00016164,2]
[385131144,1757668267353,-342.8033597,0.00016164,2]
[385131145,1757668267578,-137.1966403,0.00016164,2]
[385131146,1757668267588,-480.0,0.00016164,2]
[385131147,1757668267598,-480.0,0.00016164,2]
[385131148,1757668267607,-3183.96,0.00016164,2]
[385131149,1757668267617,-480.0,0.00016164,2]
[385131150,1757668267626,-480.0,0.00016164,2]
[385131151,1757668267636,-480.0,0.00016164,2]
[385131152,1757668267646,-1985.35,0.00016164,2]
[385131153,1757668267656,-480.0,0.00016164,2]
[385131154,1757668267667,-480.0,0.00016164,2]
[385131155,1757668267677,-480.0,0.00016164,2]
[385131156,1757668267687,-480.0,0.00016164,2]
[385131157,1757668267697,-480.0,0.00016164,2]
[385131158,1757668267708,-49.65770329,0.00016164,2]
[385131160,1757668456776,-165.9960227,0.00013158,2]
[385131161,1757668459624,-203.4359139,0.00013158,2]
[385131162,1757668461739,-455.48778367,0.00013158,2]
[385131163,1757668465793,-432.75542749,0.00013158,2]
[385131164,1757668469417,-239.46123868,0.00013158,2]
[385131165,1757668523222,165.7745662,0.00012597,2]
[385131166,1757668523869,-165.7745662,0.00013158,2]
[385131167,1757668525788,-161.13380853,0.00013158,2]
[385131168,1757668529890,-252.78344526,0.00013158,2]
[385131169,1757668531510,-240.67913411,0.00013158,2]
[385131170,1757668534868,-309.12184833,0.00013158,2]
[385131171,1757668536569,-176.51599405,0.00013158,2]
[385131172,1757668543333,-191.12758996,0.00013158,2]
[385131173,1757668548743,-163.2901293,0.00013026,2]
[385131174,1757668550384,-27.83746066,0.00013026,2]
[385131175,1757668571105,-190.50204287,0.00013158,2]
[385131177,1757668576056,-249.67507202,0.00013158,2]
[385131178,1757668578206,-170.82718854,0.00013158,2]
[385131179,1757668581210,-154.2180119,0.00013158,2]
[385131181,1757668583422,-157.60099695,0.00013158,2]
[385131186,1757668586318,-376.13947647,0.00013158,2]
[385131194,1757668588621,-162.89081125,0.00013158,2]
[385131195,1757668590170,-35.28278644,0.00013158,2]
[385131196,1757668596808,8828.92924778,0.00012271,2]
[385131197,1757668596829,10000.01,0.00012271,2]
[385131198,1757668596853,10000.01,0.00012271,2]
[385131199,1757668596887,10000.01,0.00012271,2]
[385131200,1757668596910,10000.01,0.00012271,2]
[385131201,1757668596931,2836.97522072,0.00012271,2]
[385131202,1757668612929,-420.35264175,0.00013158,2]
[385131204,1757668620728,-365.23881708,0.00013158,2]
[385131205,1757668623783,-287.34474372,0.00013158,2]
[385131206,1757668625405,-275.2812888,0.00013158,2]
[385131207,1757668627720,-148.91889509,0.00013158,2]
[385131208,1757668637440,-172.33010839,0.00013158,2]
[385131209,1757668641381,-300.48177785,0.00013158,2]
[385131210,1757668642963,-308.74400595,0.00013158,2]
[385131211,1757668645047,-196.91157007,0.00013158,2]
[385131212,1757668646629,-220.11109706,0.00013158,2]
[385131213,1757668652136,-298.55782712,0.00013158,2]
[385131214,1757668652445,22.9243441,0.00013026,2]
[385131215,1757668653719,-207.39649926,0.00013026,2]
[385131216,1757668655330,-68.23698376,0.00013026,2]
[385131217,1757668661299,-152.40059947,0.00013159,2]
[385131218,1757668662626,7163.03477928,0.00012271,2]
[385131219,1757668662651,10000.01,0.00012271,2]
[385131220,1757668662674,4305.27597932,0.00012271,2]
[385131222,1757668678454,-152.40059947,0.00013159,2]
[385131223,1757668684982,152.40059947,0.00012894,2]
[385131245,1757668798021,168.300064,6.248e-05,2]
[385131246,1757668798230,168.300064,9.372e-05,2]
[385131247,1757668798444,168.300064,0.00012496,2]
[385131250,1757668835679,666.0,0.00012497,2]
[385131253,1757668882646,152.40059947,0.00012897,2]
[385131254,1757668898995,152.40059947,0.00012897,2]
[385131255,1757668908013,4066.63203027,0.00012682,2]
[385131256,1757668908036,10000.01,0.00012682,2]
[385131257,1757668908059,10000.01,0.00012682,2]
[385131258,1757668908080,2942.42109663,0.00012682,2]
[385131260,1757668923257,-158.36320034,0.0001313,2]
[385131261,1757668926782,-8.30346633,0.0001313,2]